{"text_format":"3","workbook":"xlsx","n_sheets":1,"sheets":["Протокол ШЭ ВОШ по предмету ЛИТ"],"not_rendered":{"external_links":3,"defined_names":2},"read":"whole","date_system":"1900"}

{"sheet":"Протокол ШЭ ВОШ по предмету ЛИТ","index":0,"n_rows":140,"n_cols":13,"rows_kept":140}
["№","Фамлия","Имя","Отчество","Класс","Класс участия","Балл","Макс. Балл","Статус","Призер МЭ прошлого года","Учитель","Место работы учителя","Направление, вид практики  по технологии"]
[1,3,4,5,9,10,11,12,13,14,15,16,17]
[1,"Куркова","Дарья ","Алексеевна",5,5,35,40,"победитель","нет","Чумакова Елена Валерьевна","Муниципальное бюджетное общеобразовательное учреждение \"Многопрофильный лицей №37\" Нижнекамского муниципального района Республики Татарстан"]
[2,"Галиахметова","Алина","Алмазовна",5,5,33,40,"призер","нет","Воловикова Татьяна Ивановна","Муниципальное бюджетное общеобразовательное учреждение \"Многопрофильный лицей №37\" Нижнекамского муниципального района Республики Татарстан"]
[3,"Павлова","Диана","Павловна",5,5,32,40,"призер","нет","Чумакова Елена Валерьевна","Муниципальное бюджетное общеобразовательное учреждение \"Многопрофильный лицей №37\" Нижнекамского муниципального района Республики Татарстан"]
[4,"Байгузина ","Инзиля","Фагимовна",5,5,31,40,"участник","нет","Галимова Алия Альбертовна","Муниципальное бюджетное общеобразовательное учреждение \"Многопрофильный лицей №37\" Нижнекамского муниципального района Республики Татарстан"]
[5,"Афанасьева ","София","Сергеевна",5,5,30,40,"участник","нет","Охотникова Анжела Евгеньевна","Муниципальное бюджетное общеобразовательное учреждение \"Многопрофильный лицей №37\" Нижнекамского муниципального района Республики Татарстан"]
[6,"Латыпова","Ралина","Ришатовна",5,5,25,40,"участник","нет","Воловикова Татьяна Ивановна","Муниципальное бюджетное общеобразовательное учреждение \"Многопрофильный лицей №37\" Нижнекамского муниципального района Республики Татарстан"]
[7,"Гумарова","Аделя","Тимуровна",5,5,25,40,"участник","нет","Воловикова Татьяна Ивановна","Муниципальное бюджетное общеобразовательное учреждение \"Многопрофильный лицей №37\" Нижнекамского муниципального района Республики Татарстан"]
[8,"Храмкова"," Александра","Сергеевна",5,5,23,40,"участник","нет","Охотникова Анжела Евгеньевна","Муниципальное бюджетное общеобразовательное учреждение \"Многопрофильный лицей №37\" Нижнекамского муниципального района Республики Татарстан"]
[9,"Горлова","Маргарита","Дмитриевна",5,5,23,40,"участник","нет","Чумакова Елена Валерьевна","Муниципальное бюджетное общеобразовательное учреждение \"Многопрофильный лицей №37\" Нижнекамского муниципального района Республики Татарстан"]
[10,"Матавин","Станислав","Александрович",5,5,20,40,"участник","нет","Чумакова Елена Валерьевна","Муниципальное бюджетное общеобразовательное учреждение \"Многопрофильный лицей №37\" Нижнекамского муниципального района Республики Татарстан"]
[11,"Залаев","Арслан","Айратович",5,5,20,40,"участник","нет","Охотникова Анжела Евгеньевна","Муниципальное бюджетное общеобразовательное учреждение \"Многопрофильный лицей №37\" Нижнекамского муниципального района Республики Татарстан"]
[12,"Шагидуллина","Амина","Ильдаровна",5,5,18,40,"участник","нет","Воловикова Татьяна Ивановна","Муниципальное бюджетное общеобразовательное учреждение \"Многопрофильный лицей №37\" Нижнекамского муниципального района Республики Татарстан"]
[13,"Мухаметзянова","Лиана","Искандеровна",5,5,16,40,"участник","нет","Воловикова Татьяна Ивановна","Муниципальное бюджетное общеобразовательное учреждение \"Многопрофильный лицей №37\" Нижнекамского муниципального района Республики Татарстан"]
[14,"Барабаш","Богдан","Алексеевич",5,5,13,40,"участник","нет","Чумакова Елена Валерьевна","Муниципальное бюджетное общеобразовательное учреждение \"Многопрофильный лицей №37\" Нижнекамского муниципального района Республики Татарстан"]
[15,"Закирова","Ралина","Рустемовна",5,5,12,40,"участник","нет","Галимова Алия Альбертовна","Муниципальное бюджетное общеобразовательное учреждение \"Многопрофильный лицей №37\" Нижнекамского муниципального района Республики Татарстан"]
[16,"Михайлов","Серафим","Сергеевич",5,5,11,40,"участник","нет","Чумакова Елена Валерьевна","Муниципальное бюджетное общеобразовательное учреждение \"Многопрофильный лицей №37\" Нижнекамского муниципального района Республики Татарстан"]
[17,"Иванова","Карина","Александровна",5,5,10,40,"участник","нет","Воловикова Татьяна Ивановна","Муниципальное бюджетное общеобразовательное учреждение \"Многопрофильный лицей №37\" Нижнекамского муниципального района Республики Татарстан"]
[18,"Леонтьев","Алексей","Михайлович",5,5,10,40,"участник","нет","Охотникова Анжела Евгеньевна","Муниципальное бюджетное общеобразовательное учреждение \"Многопрофильный лицей №37\" Нижнекамского муниципального района Республики Татарстан"]
[19,"Гильманов","Ирхан","Рустемович",5,5,9,40,"участник","нет","Галимова Алия Альбертовна","Муниципальное бюджетное общеобразовательное учреждение \"Многопрофильный лицей №37\" Нижнекамского муниципального района Республики Татарстан"]
[20,"Исаева","Милана","Сергеевна",5,5,8,40,"участник","нет","Охотникова Анжела Евгеньевна","Муниципальное бюджетное общеобразовательное учреждение \"Многопрофильный лицей №37\" Нижнекамского муниципального района Республики Татарстан"]
[21,"Шарафуллин ","Камиль","Ильнурович",5,5,7,40,"участник","нет","Галимова Алия Альбертовна","Муниципальное бюджетное общеобразовательное учреждение \"Многопрофильный лицей №37\" Нижнекамского муниципального района Республики Татарстан"]
[22,"Фофонова","Дарья ","Артемовна",5,5,7,40,"участник","нет","Воловикова Татьяна Ивановна","Муниципальное бюджетное общеобразовательное учреждение \"Многопрофильный лицей №37\" Нижнекамского муниципального района Республики Татарстан"]
[23,"Сосунов","Дмитрий","Андреевич",5,5,6,40,"участник","нет","Воловикова Татьяна Ивановна","Муниципальное бюджетное общеобразовательное учреждение \"Многопрофильный лицей №37\" Нижнекамского муниципального района Республики Татарстан"]
[24,"Андреев","Булат","Эдуардович",5,5,6,40,"участник","нет","Воловикова Татьяна Ивановна","Муниципальное бюджетное общеобразовательное учреждение \"Многопрофильный лицей №37\" Нижнекамского муниципального района Республики Татарстан"]
[25,"Карликова","Дарья ","Михайловна",5,5,6,40,"участник","нет","Воловикова Татьяна Ивановна","Муниципальное бюджетное общеобразовательное учреждение \"Многопрофильный лицей №37\" Нижнекамского муниципального района Республики Татарстан"]
[26,"Смолин","Михаил","Николаевич",5,5,6,40,"участник","нет","Воловикова Татьяна Ивановна","Муниципальное бюджетное общеобразовательное учреждение \"Многопрофильный лицей №37\" Нижнекамского муниципального района Республики Татарстан"]
[27,"Хохлова ","Дарья","Дмитриевна",5,5,4,40,"участник","нет","Васильева Алевтина Павловна","Муниципальное бюджетное общеобразовательное учреждение \"Многопрофильный лицей №37\" Нижнекамского муниципального района Республики Татарстан"]
[28,"Мухаметшин","Дамир","Ринатович",5,5,6,40,"участник","нет","Галимова Алия Альбертовна","Муниципальное бюджетное общеобразовательное учреждение \"Многопрофильный лицей №37\" Нижнекамского муниципального района Республики Татарстан"]
[29,"Яруллина","Ренара","Юлдашевна",5,5,2,40,"участник","нет","Воловикова Татьяна Ивановна","Муниципальное бюджетное общеобразовательное учреждение \"Многопрофильный лицей №37\" Нижнекамского муниципального района Республики Татарстан"]
[30,"Галеева","Адиля","Наиловна",5,5,0,40,"участник","нет","Воловикова Татьяна Ивановна","Муниципальное бюджетное общеобразовательное учреждение \"Многопрофильный лицей №37\" Нижнекамского муниципального района Республики Татарстан"]
[31,"Кузнецова","Кристина","Алексеевна",5,5,1,40,"участник","нет","Васильева Алевтина Павловна","Муниципальное бюджетное общеобразовательное учреждение \"Многопрофильный лицей №37\" Нижнекамского муниципального района Республики Татарстан"]
[32,"Козлова ","София","Николаевна",5,5,0,40,"участник","нет","Васильева Алевтина Павловна","Муниципальное бюджетное общеобразовательное учреждение \"Многопрофильный лицей №37\" Нижнекамского муниципального района Республики Татарстан"]
[33,"Шишкина","Ангелина","Олеговна",5,5,0,40,"участник","нет","Васильева Алевтина Павловна","Муниципальное бюджетное общеобразовательное учреждение \"Многопрофильный лицей №37\" Нижнекамского муниципального района Республики Татарстан"]
[34,"Мустафина ","Зарина","Динаровна",5,5,0,40,"участник","нет","Охотникова Анжела Евгеньевна","Муниципальное бюджетное общеобразовательное учреждение \"Многопрофильный лицей №37\" Нижнекамского муниципального района Республики Татарстан"]
[35,"Диярова","Зарина","Маратовна",5,5,0,40,"участник","нет","Воловикова Татьяна Ивановна","Муниципальное бюджетное общеобразовательное учреждение \"Многопрофильный лицей №37\" Нижнекамского муниципального района Республики Татарстан"]
[36,"Князева","Карина","Альбертовна",5,5,0,40,"участник","нет","Галимова Алия Альбертовна","Муниципальное бюджетное общеобразовательное учреждение \"Многопрофильный лицей №37\" Нижнекамского муниципального района Республики Татарстан"]
[37,"Мингазова ","Зарина","Рамилевна",6,6,29,40,"победитель","нет","Гайнуллина Миляуша Линаровна","Муниципальное бюджетное общеобразовательное учреждение \"Многопрофильный лицей №37\" Нижнекамского муниципального района Республики Татарстан"]
[38,"Ахметжанова","Лейла","Разумовна",6,6,23,40,"призер","нет","Гайнуллина Миляуша Линаровна","Муниципальное бюджетное общеобразовательное учреждение \"Многопрофильный лицей №37\" Нижнекамского муниципального района Республики Татарстан"]
[39,"Мухаметдинова","Кира","Ленаровна",6,6,21,40,"призер","нет","Хазипова Ильмира Нургалиевна","Муниципальное бюджетное общеобразовательное учреждение \"Многопрофильный лицей №37\" Нижнекамского муниципального района Республики Татарстан"]
[40,"Саитова ","Динара","Эдуардовна",6,6,20,40,"призер","нет","Гайнуллина Миляуша Линаровна","Муниципальное бюджетное общеобразовательное учреждение \"Многопрофильный лицей №37\" Нижнекамского муниципального района Республики Татарстан"]
[41,"Миннеханова","Лина","Ирековна",6,6,19,40,"участник","нет","Макарова Эльвира Наилевна","Муниципальное бюджетное общеобразовательное учреждение \"Многопрофильный лицей №37\" Нижнекамского муниципального района Республики Татарстан"]
[42,"Кузьмина","Арина","Андреевна",6,6,15,40,"участник","нет","Макарова Эльвира Наилевна","Муниципальное бюджетное общеобразовательное учреждение \"Многопрофильный лицей №37\" Нижнекамского муниципального района Республики Татарстан"]
[43,"Лебедев","Виталий","Андреевич ",6,6,14,40,"участник","нет","Гайнуллина Миляуша Линаровна","Муниципальное бюджетное общеобразовательное учреждение \"Многопрофильный лицей №37\" Нижнекамского муниципального района Республики Татарстан"]
[44,"Минкашев","Радмир","Радиквич",6,6,14,40,"участник","нет","Гайнуллина Миляуша Линаровна","Муниципальное бюджетное общеобразовательное учреждение \"Многопрофильный лицей №37\" Нижнекамского муниципального района Республики Татарстан"]
[45,"Мельникова","Лейла","Александровна",6,6,13,40,"участник","нет","Макарова Эльвира Наилевна","Муниципальное бюджетное общеобразовательное учреждение \"Многопрофильный лицей №37\" Нижнекамского муниципального района Республики Татарстан"]
[46,"Кашапова","Диляра","Рафаэлевна",6,6,12,40,"участник","нет","Макарова Эльвира Наилевна","Муниципальное бюджетное общеобразовательное учреждение \"Многопрофильный лицей №37\" Нижнекамского муниципального района Республики Татарстан"]
[47,"Казаков","Илья","Ильич",6,6,10,40,"участник","нет","Хазипова Ильмира Нургалиевна","Муниципальное бюджетное общеобразовательное учреждение \"Многопрофильный лицей №37\" Нижнекамского муниципального района Республики Татарстан"]
[48,"Тагирова","Ралина","Айдаровна",6,6,9,40,"участник","нет","Гайнуллина Миляуша Линаровна","Муниципальное бюджетное общеобразовательное учреждение \"Многопрофильный лицей №37\" Нижнекамского муниципального района Республики Татарстан"]
[49,"Ремезов","Даниил","Павлович",6,6,8,40,"участник","нет","Гайнуллина Миляуша Линаровна","Муниципальное бюджетное общеобразовательное учреждение \"Многопрофильный лицей №37\" Нижнекамского муниципального района Республики Татарстан"]
[50,"Гайнутдинова","Динара","Дамировна",6,6,8,40,"участник","нет","Гайнуллина Миляуша Линаровна","Муниципальное бюджетное общеобразовательное учреждение \"Многопрофильный лицей №37\" Нижнекамского муниципального района Республики Татарстан"]
[51,"Ибрагимова","Ралина","Робертовна",6,6,8,40,"участник","нет","Гайнуллина Миляуша Линаровна","Муниципальное бюджетное общеобразовательное учреждение \"Многопрофильный лицей №37\" Нижнекамского муниципального района Республики Татарстан"]
[52,"Бичеева","София","Рафаэлевна",6,6,6,40,"участник","нет","Хазипова Ильмира Нургалиевна","Муниципальное бюджетное общеобразовательное учреждение \"Многопрофильный лицей №37\" Нижнекамского муниципального района Республики Татарстан"]
[53,"Хисматов","Рустам","Ленарович",6,6,5,40,"участник","нет","Гайнуллина Миляуша Линаровна","Муниципальное бюджетное общеобразовательное учреждение \"Многопрофильный лицей №37\" Нижнекамского муниципального района Республики Татарстан"]
[54,"Ильясов","Тимур","Айдарович",6,6,5,40,"участник","нет","Хазипова Ильмира Нургалиевна","Муниципальное бюджетное общеобразовательное учреждение \"Многопрофильный лицей №37\" Нижнекамского муниципального района Республики Татарстан"]
[55,"Суханова","София","Дмитриевна",6,6,4,40,"участник","нет","Макарова Эльвира Наилевна","Муниципальное бюджетное общеобразовательное учреждение \"Многопрофильный лицей №37\" Нижнекамского муниципального района Республики Татарстан"]
[56,"Рахматуллин","Ильгиз","Ильнурович",6,6,3,40,"участник","нет","Макарова Эльвира Наилевна","Муниципальное бюджетное общеобразовательное учреждение \"Многопрофильный лицей №37\" Нижнекамского муниципального района Республики Татарстан"]
[57,"Ильмухина","Марьяна","Игоревна",6,6,1,40,"участник","нет","Макарова Эльвира Наилевна","Муниципальное бюджетное общеобразовательное учреждение \"Многопрофильный лицей №37\" Нижнекамского муниципального района Республики Татарстан"]
[58,"Байрашова","Софья","Владимировна",6,6,1,40,"участник","нет","Хазипова Ильмира Нургалиевна","Муниципальное бюджетное общеобразовательное учреждение \"Многопрофильный лицей №37\" Нижнекамского муниципального района Республики Татарстан"]
[59,"Паренкина","Карина","Олеговна",6,6,0,40,"участник","нет","Макарова Эльвира Наилевна","Муниципальное бюджетное общеобразовательное учреждение \"Многопрофильный лицей №37\" Нижнекамского муниципального района Республики Татарстан"]
[60,{"$f":"'[1]Протокол ШЭ ВОШ по предмету ЛИТ'!B2","v":"Дияров"},{"$f":"'[1]Протокол ШЭ ВОШ по предмету ЛИТ'!C2","v":"Айзат"},{"$f":"'[1]Протокол ШЭ ВОШ по предмету ЛИТ'!D2","v":"Маратович"},{"$f":"'[1]Протокол ШЭ ВОШ по предмету ЛИТ'!I2","v":7},{"$f":"'[1]Протокол ШЭ ВОШ по предмету ЛИТ'!J2","v":7},{"$f":"'[1]Протокол ШЭ ВОШ по предмету ЛИТ'!K2","v":33},{"$f":"'[1]Протокол ШЭ ВОШ по предмету ЛИТ'!L2","v":40},{"$f":"'[1]Протокол ШЭ ВОШ по предмету ЛИТ'!M2","v":"победитель"},{"$f":"'[1]Протокол ШЭ ВОШ по предмету ЛИТ'!N2","v":"нет"},"Котляр Динара Дамировна",{"$f":"'[1]Протокол ШЭ ВОШ по предмету ЛИТ'!P2","v":"Муниципальное бюджетное общеобразовательное учреждение \"Многопрофильный лицей №37\" Нижнекамского муниципального района Республики Татарстан"}]
[61,{"$f":"'[1]Протокол ШЭ ВОШ по предмету ЛИТ'!B3","v":"Каримов"},{"$f":"'[1]Протокол ШЭ ВОШ по предмету ЛИТ'!C3","v":"Ранис"},{"$f":"'[1]Протокол ШЭ ВОШ по предмету ЛИТ'!D3","v":"Равильевич"},{"$f":"'[1]Протокол ШЭ ВОШ по предмету ЛИТ'!I3","v":7},{"$f":"'[1]Протокол ШЭ ВОШ по предмету ЛИТ'!J3","v":7},{"$f":"'[1]Протокол ШЭ ВОШ по предмету ЛИТ'!K3","v":28},{"$f":"'[1]Протокол ШЭ ВОШ по предмету ЛИТ'!L3","v":40},{"$f":"'[1]Протокол ШЭ ВОШ по предмету ЛИТ'!M3","v":"призер"},{"$f":"'[1]Протокол ШЭ ВОШ по предмету ЛИТ'!N3","v":"нет"},"Охотникова Анжела Евгеньевна",{"$f":"'[1]Протокол ШЭ ВОШ по предмету ЛИТ'!P3","v":"Муниципальное бюджетное общеобразовательное учреждение \"Многопрофильный лицей №37\" Нижнекамского муниципального района Республики Татарстан"}]
[62,{"$f":"'[1]Протокол ШЭ ВОШ по предмету ЛИТ'!B4","v":"Галимуллина"},{"$f":"'[1]Протокол ШЭ ВОШ по предмету ЛИТ'!C4","v":"Камиля"},{"$f":"'[1]Протокол ШЭ ВОШ по предмету ЛИТ'!D4","v":"Раисовна"},{"$f":"'[1]Протокол ШЭ ВОШ по предмету ЛИТ'!I4","v":7},{"$f":"'[1]Протокол ШЭ ВОШ по предмету ЛИТ'!J4","v":7},{"$f":"'[1]Протокол ШЭ ВОШ по предмету ЛИТ'!K4","v":27},{"$f":"'[1]Протокол ШЭ ВОШ по предмету ЛИТ'!L4","v":40},{"$f":"'[1]Протокол ШЭ ВОШ по предмету ЛИТ'!M4","v":"участник"},{"$f":"'[1]Протокол ШЭ ВОШ по предмету ЛИТ'!N4","v":"нет"},"Охотникова Анжела Евгеньевна",{"$f":"'[1]Протокол ШЭ ВОШ по предмету ЛИТ'!P4","v":"Муниципальное бюджетное общеобразовательное учреждение \"Многопрофильный лицей №37\" Нижнекамского муниципального района Республики Татарстан"}]
[63,{"$f":"'[1]Протокол ШЭ ВОШ по предмету ЛИТ'!B5","v":"Гришин"},{"$f":"'[1]Протокол ШЭ ВОШ по предмету ЛИТ'!C5","v":"Егор"},{"$f":"'[1]Протокол ШЭ ВОШ по предмету ЛИТ'!D5","v":"Максимович"},{"$f":"'[1]Протокол ШЭ ВОШ по предмету ЛИТ'!I5","v":7},{"$f":"'[1]Протокол ШЭ ВОШ по предмету ЛИТ'!J5","v":7},{"$f":"'[1]Протокол ШЭ ВОШ по предмету ЛИТ'!K5","v":27},{"$f":"'[1]Протокол ШЭ ВОШ по предмету ЛИТ'!L5","v":40},{"$f":"'[1]Протокол ШЭ ВОШ по предмету ЛИТ'!M5","v":"участник"},{"$f":"'[1]Протокол ШЭ ВОШ по предмету ЛИТ'!N5","v":"нет"},"Макарова Эльвира Наилевна",{"$f":"'[1]Протокол ШЭ ВОШ по предмету ЛИТ'!P5","v":"Муниципальное бюджетное общеобразовательное учреждение \"Многопрофильный лицей №37\" Нижнекамского муниципального района Республики Татарстан"}]
[64,{"$f":"'[1]Протокол ШЭ ВОШ по предмету ЛИТ'!B6","v":"Бадртдинова"},{"$f":"'[1]Протокол ШЭ ВОШ по предмету ЛИТ'!C6","v":"Алина "},{"$f":"'[1]Протокол ШЭ ВОШ по предмету ЛИТ'!D6","v":"Руслановна"},{"$f":"'[1]Протокол ШЭ ВОШ по предмету ЛИТ'!I6","v":7},{"$f":"'[1]Протокол ШЭ ВОШ по предмету ЛИТ'!J6","v":7},{"$f":"'[1]Протокол ШЭ ВОШ по предмету ЛИТ'!K6","v":26},{"$f":"'[1]Протокол ШЭ ВОШ по предмету ЛИТ'!L6","v":40},{"$f":"'[1]Протокол ШЭ ВОШ по предмету ЛИТ'!M6","v":"участник"},{"$f":"'[1]Протокол ШЭ ВОШ по предмету ЛИТ'!N6","v":"нет"},"Макарова Эльвира Наилевна",{"$f":"'[1]Протокол ШЭ ВОШ по предмету ЛИТ'!P6","v":"Муниципальное бюджетное общеобразовательное учреждение \"Многопрофильный лицей №37\" Нижнекамского муниципального района Республики Татарстан"}]
[65,{"$f":"'[1]Протокол ШЭ ВОШ по предмету ЛИТ'!B7","v":"Демидова"},{"$f":"'[1]Протокол ШЭ ВОШ по предмету ЛИТ'!C7","v":"Ксения"},{"$f":"'[1]Протокол ШЭ ВОШ по предмету ЛИТ'!D7","v":"Александровна"},{"$f":"'[1]Протокол ШЭ ВОШ по предмету ЛИТ'!I7","v":7},{"$f":"'[1]Протокол ШЭ ВОШ по предмету ЛИТ'!J7","v":7},{"$f":"'[1]Протокол ШЭ ВОШ по предмету ЛИТ'!K7","v":26},{"$f":"'[1]Протокол ШЭ ВОШ по предмету ЛИТ'!L7","v":40},{"$f":"'[1]Протокол ШЭ ВОШ по предмету ЛИТ'!M7","v":"участник"},{"$f":"'[1]Протокол ШЭ ВОШ по предмету ЛИТ'!N7","v":"нет"},"Охотникова Анжела Евгеньевна",{"$f":"'[1]Протокол ШЭ ВОШ по предмету ЛИТ'!P7","v":"Муниципальное бюджетное общеобразовательное учреждение \"Многопрофильный лицей №37\" Нижнекамского муниципального района Республики Татарстан"}]
[66,{"$f":"'[1]Протокол ШЭ ВОШ по предмету ЛИТ'!B8","v":"Галкина"},{"$f":"'[1]Протокол ШЭ ВОШ по предмету ЛИТ'!C8","v":"Валерия"},{"$f":"'[1]Протокол ШЭ ВОШ по предмету ЛИТ'!D8","v":"Сергеевна"},{"$f":"'[1]Протокол ШЭ ВОШ по предмету ЛИТ'!I8","v":7},{"$f":"'[1]Протокол ШЭ ВОШ по предмету ЛИТ'!J8","v":7},{"$f":"'[1]Протокол ШЭ ВОШ по предмету ЛИТ'!K8","v":22},{"$f":"'[1]Протокол ШЭ ВОШ по предмету ЛИТ'!L8","v":40},{"$f":"'[1]Протокол ШЭ ВОШ по предмету ЛИТ'!M8","v":"участник"},{"$f":"'[1]Протокол ШЭ ВОШ по предмету ЛИТ'!N8","v":"нет"},"Котляр Динара Дамировна",{"$f":"'[1]Протокол ШЭ ВОШ по предмету ЛИТ'!P8","v":"Муниципальное бюджетное общеобразовательное учреждение \"Многопрофильный лицей №37\" Нижнекамского муниципального района Республики Татарстан"}]
[67,{"$f":"'[1]Протокол ШЭ ВОШ по предмету ЛИТ'!B9","v":"Бахтигаряева"},{"$f":"'[1]Протокол ШЭ ВОШ по предмету ЛИТ'!C9","v":"Марьям"},{"$f":"'[1]Протокол ШЭ ВОШ по предмету ЛИТ'!D9","v":"Рустемовна "},{"$f":"'[1]Протокол ШЭ ВОШ по предмету ЛИТ'!I9","v":7},{"$f":"'[1]Протокол ШЭ ВОШ по предмету ЛИТ'!J9","v":7},{"$f":"'[1]Протокол ШЭ ВОШ по предмету ЛИТ'!K9","v":21},{"$f":"'[1]Протокол ШЭ ВОШ по предмету ЛИТ'!L9","v":40},{"$f":"'[1]Протокол ШЭ ВОШ по предмету ЛИТ'!M9","v":"участник"},{"$f":"'[1]Протокол ШЭ ВОШ по предмету ЛИТ'!N9","v":"нет"},"Котляр Динара Дамировна",{"$f":"'[1]Протокол ШЭ ВОШ по предмету ЛИТ'!P9","v":"Муниципальное бюджетное общеобразовательное учреждение \"Многопрофильный лицей №37\" Нижнекамского муниципального района Республики Татарстан"}]
[68,{"$f":"'[1]Протокол ШЭ ВОШ по предмету ЛИТ'!B10","v":"Чекмарова "},{"$f":"'[1]Протокол ШЭ ВОШ по предмету ЛИТ'!C10","v":"София"},{"$f":"'[1]Протокол ШЭ ВОШ по предмету ЛИТ'!D10","v":"Анатольевна"},{"$f":"'[1]Протокол ШЭ ВОШ по предмету ЛИТ'!I10","v":7},{"$f":"'[1]Протокол ШЭ ВОШ по предмету ЛИТ'!J10","v":7},{"$f":"'[1]Протокол ШЭ ВОШ по предмету ЛИТ'!K10","v":21},{"$f":"'[1]Протокол ШЭ ВОШ по предмету ЛИТ'!L10","v":40},{"$f":"'[1]Протокол ШЭ ВОШ по предмету ЛИТ'!M10","v":"участник"},{"$f":"'[1]Протокол ШЭ ВОШ по предмету ЛИТ'!N10","v":"нет"},"Котляр Динара Дамировна",{"$f":"'[1]Протокол ШЭ ВОШ по предмету ЛИТ'!P10","v":"Муниципальное бюджетное общеобразовательное учреждение \"Многопрофильный лицей №37\" Нижнекамского муниципального района Республики Татарстан"}]
[69,{"$f":"'[1]Протокол ШЭ ВОШ по предмету ЛИТ'!B11","v":"Миндубаев "},{"$f":"'[1]Протокол ШЭ ВОШ по предмету ЛИТ'!C11","v":"Назыйм"},{"$f":"'[1]Протокол ШЭ ВОШ по предмету ЛИТ'!D11","v":"Фазылович"},{"$f":"'[1]Протокол ШЭ ВОШ по предмету ЛИТ'!I11","v":7},{"$f":"'[1]Протокол ШЭ ВОШ по предмету ЛИТ'!J11","v":7},{"$f":"'[1]Протокол ШЭ ВОШ по предмету ЛИТ'!K11","v":20},{"$f":"'[1]Протокол ШЭ ВОШ по предмету ЛИТ'!L11","v":40},{"$f":"'[1]Протокол ШЭ ВОШ по предмету ЛИТ'!M11","v":"участник"},{"$f":"'[1]Протокол ШЭ ВОШ по предмету ЛИТ'!N11","v":"нет"},"Котляр Динара Дамировна",{"$f":"'[1]Протокол ШЭ ВОШ по предмету ЛИТ'!P11","v":"Муниципальное бюджетное общеобразовательное учреждение \"Многопрофильный лицей №37\" Нижнекамского муниципального района Республики Татарстан"}]
[70,{"$f":"'[1]Протокол ШЭ ВОШ по предмету ЛИТ'!B12","v":"Измайлова"},{"$f":"'[1]Протокол ШЭ ВОШ по предмету ЛИТ'!C12","v":"Диляра"},{"$f":"'[1]Протокол ШЭ ВОШ по предмету ЛИТ'!D12","v":"Альбертовна"},{"$f":"'[1]Протокол ШЭ ВОШ по предмету ЛИТ'!I12","v":7},{"$f":"'[1]Протокол ШЭ ВОШ по предмету ЛИТ'!J12","v":7},{"$f":"'[1]Протокол ШЭ ВОШ по предмету ЛИТ'!K12","v":20},{"$f":"'[1]Протокол ШЭ ВОШ по предмету ЛИТ'!L12","v":40},{"$f":"'[1]Протокол ШЭ ВОШ по предмету ЛИТ'!M12","v":"участник"},{"$f":"'[1]Протокол ШЭ ВОШ по предмету ЛИТ'!N12","v":"нет"},"Охотникова Анжела Евгеньевна",{"$f":"'[1]Протокол ШЭ ВОШ по предмету ЛИТ'!P12","v":"Муниципальное бюджетное общеобразовательное учреждение \"Многопрофильный лицей №37\" Нижнекамского муниципального района Республики Татарстан"}]
[71,{"$f":"'[1]Протокол ШЭ ВОШ по предмету ЛИТ'!B13","v":"Бусыгина"},{"$f":"'[1]Протокол ШЭ ВОШ по предмету ЛИТ'!C13","v":"Анна"},{"$f":"'[1]Протокол ШЭ ВОШ по предмету ЛИТ'!D13","v":"Алексеевна"},{"$f":"'[1]Протокол ШЭ ВОШ по предмету ЛИТ'!I13","v":7},{"$f":"'[1]Протокол ШЭ ВОШ по предмету ЛИТ'!J13","v":7},{"$f":"'[1]Протокол ШЭ ВОШ по предмету ЛИТ'!K13","v":20},{"$f":"'[1]Протокол ШЭ ВОШ по предмету ЛИТ'!L13","v":40},{"$f":"'[1]Протокол ШЭ ВОШ по предмету ЛИТ'!M13","v":"участник"},{"$f":"'[1]Протокол ШЭ ВОШ по предмету ЛИТ'!N13","v":"нет"},"Охотникова Анжела Евгеньевна",{"$f":"'[1]Протокол ШЭ ВОШ по предмету ЛИТ'!P13","v":"Муниципальное бюджетное общеобразовательное учреждение \"Многопрофильный лицей №37\" Нижнекамского муниципального района Республики Татарстан"}]
[72,{"$f":"'[1]Протокол ШЭ ВОШ по предмету ЛИТ'!B14","v":"Макаров"},{"$f":"'[1]Протокол ШЭ ВОШ по предмету ЛИТ'!C14","v":"Георгий"},{"$f":"'[1]Протокол ШЭ ВОШ по предмету ЛИТ'!D14","v":"Дмитриевич"},{"$f":"'[1]Протокол ШЭ ВОШ по предмету ЛИТ'!I14","v":7},{"$f":"'[1]Протокол ШЭ ВОШ по предмету ЛИТ'!J14","v":7},{"$f":"'[1]Протокол ШЭ ВОШ по предмету ЛИТ'!K14","v":19},{"$f":"'[1]Протокол ШЭ ВОШ по предмету ЛИТ'!L14","v":40},{"$f":"'[1]Протокол ШЭ ВОШ по предмету ЛИТ'!M14","v":"участник"},{"$f":"'[1]Протокол ШЭ ВОШ по предмету ЛИТ'!N14","v":"нет"},"Макарова Эльвира Наилевна",{"$f":"'[1]Протокол ШЭ ВОШ по предмету ЛИТ'!P14","v":"Муниципальное бюджетное общеобразовательное учреждение \"Многопрофильный лицей №37\" Нижнекамского муниципального района Республики Татарстан"}]
[73,{"$f":"'[1]Протокол ШЭ ВОШ по предмету ЛИТ'!B15","v":"Пантелеева"},{"$f":"'[1]Протокол ШЭ ВОШ по предмету ЛИТ'!C15","v":"Ульяна"},{"$f":"'[1]Протокол ШЭ ВОШ по предмету ЛИТ'!D15","v":"Сергеевна"},{"$f":"'[1]Протокол ШЭ ВОШ по предмету ЛИТ'!I15","v":7},{"$f":"'[1]Протокол ШЭ ВОШ по предмету ЛИТ'!J15","v":7},{"$f":"'[1]Протокол ШЭ ВОШ по предмету ЛИТ'!K15","v":18},{"$f":"'[1]Протокол ШЭ ВОШ по предмету ЛИТ'!L15","v":40},{"$f":"'[1]Протокол ШЭ ВОШ по предмету ЛИТ'!M15","v":"участник"},{"$f":"'[1]Протокол ШЭ ВОШ по предмету ЛИТ'!N15","v":"нет"},"Котляр Динара Дамировна",{"$f":"'[1]Протокол ШЭ ВОШ по предмету ЛИТ'!P15","v":"Муниципальное бюджетное общеобразовательное учреждение \"Многопрофильный лицей №37\" Нижнекамского муниципального района Республики Татарстан"}]
[74,{"$f":"'[1]Протокол ШЭ ВОШ по предмету ЛИТ'!B16","v":"Музафарова "},{"$f":"'[1]Протокол ШЭ ВОШ по предмету ЛИТ'!C16","v":"Милана"},{"$f":"'[1]Протокол ШЭ ВОШ по предмету ЛИТ'!D16","v":"Раилевна"},{"$f":"'[1]Протокол ШЭ ВОШ по предмету ЛИТ'!I16","v":7},{"$f":"'[1]Протокол ШЭ ВОШ по предмету ЛИТ'!J16","v":7},{"$f":"'[1]Протокол ШЭ ВОШ по предмету ЛИТ'!K16","v":18},{"$f":"'[1]Протокол ШЭ ВОШ по предмету ЛИТ'!L16","v":40},{"$f":"'[1]Протокол ШЭ ВОШ по предмету ЛИТ'!M16","v":"участник"},{"$f":"'[1]Протокол ШЭ ВОШ по предмету ЛИТ'!N16","v":"нет"},"Макарова Эльвира Наилевна",{"$f":"'[1]Протокол ШЭ ВОШ по предмету ЛИТ'!P16","v":"Муниципальное бюджетное общеобразовательное учреждение \"Многопрофильный лицей №37\" Нижнекамского муниципального района Республики Татарстан"}]
[75,{"$f":"'[1]Протокол ШЭ ВОШ по предмету ЛИТ'!B17","v":"Галимова "},{"$f":"'[1]Протокол ШЭ ВОШ по предмету ЛИТ'!C17","v":"Гульназ "},{"$f":"'[1]Протокол ШЭ ВОШ по предмету ЛИТ'!D17","v":"Ильназовна"},{"$f":"'[1]Протокол ШЭ ВОШ по предмету ЛИТ'!I17","v":7},{"$f":"'[1]Протокол ШЭ ВОШ по предмету ЛИТ'!J17","v":7},{"$f":"'[1]Протокол ШЭ ВОШ по предмету ЛИТ'!K17","v":18},{"$f":"'[1]Протокол ШЭ ВОШ по предмету ЛИТ'!L17","v":40},{"$f":"'[1]Протокол ШЭ ВОШ по предмету ЛИТ'!M17","v":"участник"},{"$f":"'[1]Протокол ШЭ ВОШ по предмету ЛИТ'!N17","v":"нет"},"Охотникова Анжела Евгеньевна",{"$f":"'[1]Протокол ШЭ ВОШ по предмету ЛИТ'!P17","v":"Муниципальное бюджетное общеобразовательное учреждение \"Многопрофильный лицей №37\" Нижнекамского муниципального района Республики Татарстан"}]
[76,{"$f":"'[1]Протокол ШЭ ВОШ по предмету ЛИТ'!B18","v":"Ахмадиева"},{"$f":"'[1]Протокол ШЭ ВОШ по предмету ЛИТ'!C18","v":"Зиля"},{"$f":"'[1]Протокол ШЭ ВОШ по предмету ЛИТ'!D18","v":"Рустемовна"},{"$f":"'[1]Протокол ШЭ ВОШ по предмету ЛИТ'!I18","v":7},{"$f":"'[1]Протокол ШЭ ВОШ по предмету ЛИТ'!J18","v":7},{"$f":"'[1]Протокол ШЭ ВОШ по предмету ЛИТ'!K18","v":18},{"$f":"'[1]Протокол ШЭ ВОШ по предмету ЛИТ'!L18","v":40},{"$f":"'[1]Протокол ШЭ ВОШ по предмету ЛИТ'!M18","v":"участник"},{"$f":"'[1]Протокол ШЭ ВОШ по предмету ЛИТ'!N18","v":"нет"},"Макарова Эльвира Наилевна",{"$f":"'[1]Протокол ШЭ ВОШ по предмету ЛИТ'!P18","v":"Муниципальное бюджетное общеобразовательное учреждение \"Многопрофильный лицей №37\" Нижнекамского муниципального района Республики Татарстан"}]
[77,{"$f":"'[1]Протокол ШЭ ВОШ по предмету ЛИТ'!B19","v":"Салахова"},{"$f":"'[1]Протокол ШЭ ВОШ по предмету ЛИТ'!C19","v":"Азалия"},{"$f":"'[1]Протокол ШЭ ВОШ по предмету ЛИТ'!D19","v":"Алмазовна"},{"$f":"'[1]Протокол ШЭ ВОШ по предмету ЛИТ'!I19","v":7},{"$f":"'[1]Протокол ШЭ ВОШ по предмету ЛИТ'!J19","v":7},{"$f":"'[1]Протокол ШЭ ВОШ по предмету ЛИТ'!K19","v":18},{"$f":"'[1]Протокол ШЭ ВОШ по предмету ЛИТ'!L19","v":40},{"$f":"'[1]Протокол ШЭ ВОШ по предмету ЛИТ'!M19","v":"участник"},{"$f":"'[1]Протокол ШЭ ВОШ по предмету ЛИТ'!N19","v":"нет"},"Макарова Эльвира Наилевна",{"$f":"'[1]Протокол ШЭ ВОШ по предмету ЛИТ'!P19","v":"Муниципальное бюджетное общеобразовательное учреждение \"Многопрофильный лицей №37\" Нижнекамского муниципального района Республики Татарстан"}]
[78,{"$f":"'[1]Протокол ШЭ ВОШ по предмету ЛИТ'!B20","v":"Гудкова"},{"$f":"'[1]Протокол ШЭ ВОШ по предмету ЛИТ'!C20","v":"Маргарита"},{"$f":"'[1]Протокол ШЭ ВОШ по предмету ЛИТ'!D20","v":"Игоревна"},{"$f":"'[1]Протокол ШЭ ВОШ по предмету ЛИТ'!I20","v":7},{"$f":"'[1]Протокол ШЭ ВОШ по предмету ЛИТ'!J20","v":7},{"$f":"'[1]Протокол ШЭ ВОШ по предмету ЛИТ'!K20","v":17},{"$f":"'[1]Протокол ШЭ ВОШ по предмету ЛИТ'!L20","v":40},{"$f":"'[1]Протокол ШЭ ВОШ по предмету ЛИТ'!M20","v":"участник"},{"$f":"'[1]Протокол ШЭ ВОШ по предмету ЛИТ'!N20","v":"нет"},"Котляр Динара Дамировна",{"$f":"'[1]Протокол ШЭ ВОШ по предмету ЛИТ'!P20","v":"Муниципальное бюджетное общеобразовательное учреждение \"Многопрофильный лицей №37\" Нижнекамского муниципального района Республики Татарстан"}]
[79,{"$f":"'[1]Протокол ШЭ ВОШ по предмету ЛИТ'!B21","v":"Шандренкова"},{"$f":"'[1]Протокол ШЭ ВОШ по предмету ЛИТ'!C21","v":"Анастасия"},{"$f":"'[1]Протокол ШЭ ВОШ по предмету ЛИТ'!D21","v":"Александровна"},{"$f":"'[1]Протокол ШЭ ВОШ по предмету ЛИТ'!I21","v":7},{"$f":"'[1]Протокол ШЭ ВОШ по предмету ЛИТ'!J21","v":7},{"$f":"'[1]Протокол ШЭ ВОШ по предмету ЛИТ'!K21","v":17},{"$f":"'[1]Протокол ШЭ ВОШ по предмету ЛИТ'!L21","v":40},{"$f":"'[1]Протокол ШЭ ВОШ по предмету ЛИТ'!M21","v":"участник"},{"$f":"'[1]Протокол ШЭ ВОШ по предмету ЛИТ'!N21","v":"нет"},"Макарова Эльвира Наилевна",{"$f":"'[1]Протокол ШЭ ВОШ по предмету ЛИТ'!P21","v":"Муниципальное бюджетное общеобразовательное учреждение \"Многопрофильный лицей №37\" Нижнекамского муниципального района Республики Татарстан"}]
[80,{"$f":"'[1]Протокол ШЭ ВОШ по предмету ЛИТ'!B22","v":"Подакова"},{"$f":"'[1]Протокол ШЭ ВОШ по предмету ЛИТ'!C22","v":"Полина"},{"$f":"'[1]Протокол ШЭ ВОШ по предмету ЛИТ'!D22","v":"Александровна"},{"$f":"'[1]Протокол ШЭ ВОШ по предмету ЛИТ'!I22","v":7},{"$f":"'[1]Протокол ШЭ ВОШ по предмету ЛИТ'!J22","v":7},{"$f":"'[1]Протокол ШЭ ВОШ по предмету ЛИТ'!K22","v":17},{"$f":"'[1]Протокол ШЭ ВОШ по предмету ЛИТ'!L22","v":40},{"$f":"'[1]Протокол ШЭ ВОШ по предмету ЛИТ'!M22","v":"участник"},{"$f":"'[1]Протокол ШЭ ВОШ по предмету ЛИТ'!N22","v":"нет"},"Макарова Эльвира Наилевна",{"$f":"'[1]Протокол ШЭ ВОШ по предмету ЛИТ'!P22","v":"Муниципальное бюджетное общеобразовательное учреждение \"Многопрофильный лицей №37\" Нижнекамского муниципального района Республики Татарстан"}]
[81,{"$f":"'[1]Протокол ШЭ ВОШ по предмету ЛИТ'!B23","v":"Хамадвалиева"},{"$f":"'[1]Протокол ШЭ ВОШ по предмету ЛИТ'!C23","v":"Ландыш"},{"$f":"'[1]Протокол ШЭ ВОШ по предмету ЛИТ'!D23","v":"Зиннуровна"},{"$f":"'[1]Протокол ШЭ ВОШ по предмету ЛИТ'!I23","v":7},{"$f":"'[1]Протокол ШЭ ВОШ по предмету ЛИТ'!J23","v":7},{"$f":"'[1]Протокол ШЭ ВОШ по предмету ЛИТ'!K23","v":15},{"$f":"'[1]Протокол ШЭ ВОШ по предмету ЛИТ'!L23","v":40},{"$f":"'[1]Протокол ШЭ ВОШ по предмету ЛИТ'!M23","v":"участник"},{"$f":"'[1]Протокол ШЭ ВОШ по предмету ЛИТ'!N23","v":"нет"},"Охотникова Анжела Евгеньевна",{"$f":"'[1]Протокол ШЭ ВОШ по предмету ЛИТ'!P23","v":"Муниципальное бюджетное общеобразовательное учреждение \"Многопрофильный лицей №37\" Нижнекамского муниципального района Республики Татарстан"}]
[82,{"$f":"'[1]Протокол ШЭ ВОШ по предмету ЛИТ'!B24","v":"Габдрахимова"},{"$f":"'[1]Протокол ШЭ ВОШ по предмету ЛИТ'!C24","v":"Камилла"},{"$f":"'[1]Протокол ШЭ ВОШ по предмету ЛИТ'!D24","v":"Ильдаровна"},{"$f":"'[1]Протокол ШЭ ВОШ по предмету ЛИТ'!I24","v":7},{"$f":"'[1]Протокол ШЭ ВОШ по предмету ЛИТ'!J24","v":7},{"$f":"'[1]Протокол ШЭ ВОШ по предмету ЛИТ'!K24","v":15},{"$f":"'[1]Протокол ШЭ ВОШ по предмету ЛИТ'!L24","v":40},{"$f":"'[1]Протокол ШЭ ВОШ по предмету ЛИТ'!M24","v":"участник"},{"$f":"'[1]Протокол ШЭ ВОШ по предмету ЛИТ'!N24","v":"нет"},"Макарова Эльвира Наилевна",{"$f":"'[1]Протокол ШЭ ВОШ по предмету ЛИТ'!P24","v":"Муниципальное бюджетное общеобразовательное учреждение \"Многопрофильный лицей №37\" Нижнекамского муниципального района Республики Татарстан"}]
[83,{"$f":"'[1]Протокол ШЭ ВОШ по предмету ЛИТ'!B25","v":"Натфуллина"},{"$f":"'[1]Протокол ШЭ ВОШ по предмету ЛИТ'!C25","v":"Альбина"},{"$f":"'[1]Протокол ШЭ ВОШ по предмету ЛИТ'!D25","v":"Ильшатовна"},{"$f":"'[1]Протокол ШЭ ВОШ по предмету ЛИТ'!I25","v":7},{"$f":"'[1]Протокол ШЭ ВОШ по предмету ЛИТ'!J25","v":7},{"$f":"'[1]Протокол ШЭ ВОШ по предмету ЛИТ'!K25","v":14},{"$f":"'[1]Протокол ШЭ ВОШ по предмету ЛИТ'!L25","v":40},{"$f":"'[1]Протокол ШЭ ВОШ по предмету ЛИТ'!M25","v":"участник"},{"$f":"'[1]Протокол ШЭ ВОШ по предмету ЛИТ'!N25","v":"нет"},"Макарова Эльвира Наилевна",{"$f":"'[1]Протокол ШЭ ВОШ по предмету ЛИТ'!P25","v":"Муниципальное бюджетное общеобразовательное учреждение \"Многопрофильный лицей №37\" Нижнекамского муниципального района Республики Татарстан"}]
[84,{"$f":"'[1]Протокол ШЭ ВОШ по предмету ЛИТ'!B26","v":"Быкова"},{"$f":"'[1]Протокол ШЭ ВОШ по предмету ЛИТ'!C26","v":"Анастасия"},{"$f":"'[1]Протокол ШЭ ВОШ по предмету ЛИТ'!D26","v":"Дмитриевна"},{"$f":"'[1]Протокол ШЭ ВОШ по предмету ЛИТ'!I26","v":7},{"$f":"'[1]Протокол ШЭ ВОШ по предмету ЛИТ'!J26","v":7},{"$f":"'[1]Протокол ШЭ ВОШ по предмету ЛИТ'!K26","v":14},{"$f":"'[1]Протокол ШЭ ВОШ по предмету ЛИТ'!L26","v":40},{"$f":"'[1]Протокол ШЭ ВОШ по предмету ЛИТ'!M26","v":"участник"},{"$f":"'[1]Протокол ШЭ ВОШ по предмету ЛИТ'!N26","v":"нет"},"Охотникова Анжела Евгеньевна",{"$f":"'[1]Протокол ШЭ ВОШ по предмету ЛИТ'!P26","v":"Муниципальное бюджетное общеобразовательное учреждение \"Многопрофильный лицей №37\" Нижнекамского муниципального района Республики Татарстан"}]
[85,{"$f":"'[1]Протокол ШЭ ВОШ по предмету ЛИТ'!B27","v":"Сафин"},{"$f":"'[1]Протокол ШЭ ВОШ по предмету ЛИТ'!C27","v":"Амир"},{"$f":"'[1]Протокол ШЭ ВОШ по предмету ЛИТ'!D27","v":"Ренатович"},{"$f":"'[1]Протокол ШЭ ВОШ по предмету ЛИТ'!I27","v":7},{"$f":"'[1]Протокол ШЭ ВОШ по предмету ЛИТ'!J27","v":7},{"$f":"'[1]Протокол ШЭ ВОШ по предмету ЛИТ'!K27","v":13},{"$f":"'[1]Протокол ШЭ ВОШ по предмету ЛИТ'!L27","v":40},{"$f":"'[1]Протокол ШЭ ВОШ по предмету ЛИТ'!M27","v":"участник"},{"$f":"'[1]Протокол ШЭ ВОШ по предмету ЛИТ'!N27","v":"нет"},"Охотникова Анжела Евгеньевна",{"$f":"'[1]Протокол ШЭ ВОШ по предмету ЛИТ'!P27","v":"Муниципальное бюджетное общеобразовательное учреждение \"Многопрофильный лицей №37\" Нижнекамского муниципального района Республики Татарстан"}]
[86,{"$f":"'[1]Протокол ШЭ ВОШ по предмету ЛИТ'!B28","v":"Юлмухаметов"},{"$f":"'[1]Протокол ШЭ ВОШ по предмету ЛИТ'!C28","v":"Рамир"},{"$f":"'[1]Протокол ШЭ ВОШ по предмету ЛИТ'!D28","v":"Рамилевич"},{"$f":"'[1]Протокол ШЭ ВОШ по предмету ЛИТ'!I28","v":7},{"$f":"'[1]Протокол ШЭ ВОШ по предмету ЛИТ'!J28","v":7},{"$f":"'[1]Протокол ШЭ ВОШ по предмету ЛИТ'!K28","v":13},{"$f":"'[1]Протокол ШЭ ВОШ по предмету ЛИТ'!L28","v":40},{"$f":"'[1]Протокол ШЭ ВОШ по предмету ЛИТ'!M28","v":"участник"},{"$f":"'[1]Протокол ШЭ ВОШ по предмету ЛИТ'!N28","v":"нет"},"Котляр Динара Дамировна",{"$f":"'[1]Протокол ШЭ ВОШ по предмету ЛИТ'!P28","v":"Муниципальное бюджетное общеобразовательное учреждение \"Многопрофильный лицей №37\" Нижнекамского муниципального района Республики Татарстан"}]
[87,{"$f":"'[2]Протокол ШЭ ВОШ по предмету ЛИТ'!B2","v":"Ульданов"},{"$f":"'[2]Протокол ШЭ ВОШ по предмету ЛИТ'!C2","v":"Рафиль"},{"$f":"'[2]Протокол ШЭ ВОШ по предмету ЛИТ'!D2","v":"Ниязович"},{"$f":"'[2]Протокол ШЭ ВОШ по предмету ЛИТ'!I2","v":8},8,30,{"$f":"'[2]Протокол ШЭ ВОШ по предмету ЛИТ'!L2","v":40},{"$f":"'[2]Протокол ШЭ ВОШ по предмету ЛИТ'!M2","v":"победитель"},{"$f":"'[2]Протокол ШЭ ВОШ по предмету ЛИТ'!N2","v":"нет"},{"$f":"'[2]Протокол ШЭ ВОШ по предмету ЛИТ'!O2","v":"Хазипова Ильмира Нургалиевна"},{"$f":"'[2]Протокол ШЭ ВОШ по предмету ЛИТ'!P2","v":"Муниципальное бюджетное общеобразовательное учреждение \"Многопрофильный лицей №37\" Нижнекамского муниципального района Республики Татарстан"}]
[88,{"$f":"'[2]Протокол ШЭ ВОШ по предмету ЛИТ'!B3","v":"Шитова"},{"$f":"'[2]Протокол ШЭ ВОШ по предмету ЛИТ'!C3","v":"Варвара"},{"$f":"'[2]Протокол ШЭ ВОШ по предмету ЛИТ'!D3","v":"Александровна"},{"$f":"'[2]Протокол ШЭ ВОШ по предмету ЛИТ'!I3","v":8},8,28,{"$f":"'[2]Протокол ШЭ ВОШ по предмету ЛИТ'!L3","v":40},{"$f":"'[2]Протокол ШЭ ВОШ по предмету ЛИТ'!M3","v":"призер"},{"$f":"'[2]Протокол ШЭ ВОШ по предмету ЛИТ'!N3","v":"нет"},{"$f":"'[2]Протокол ШЭ ВОШ по предмету ЛИТ'!O3","v":"Хазипова Ильмира Нургалиевна"},{"$f":"'[2]Протокол ШЭ ВОШ по предмету ЛИТ'!P3","v":"Муниципальное бюджетное общеобразовательное учреждение \"Многопрофильный лицей №37\" Нижнекамского муниципального района Республики Татарстан"}]
[89,{"$f":"'[2]Протокол ШЭ ВОШ по предмету ЛИТ'!B4","v":"Павчинская"},{"$f":"'[2]Протокол ШЭ ВОШ по предмету ЛИТ'!C4","v":"Анна"},{"$f":"'[2]Протокол ШЭ ВОШ по предмету ЛИТ'!D4","v":"Евгеньевна"},{"$f":"'[2]Протокол ШЭ ВОШ по предмету ЛИТ'!I4","v":8},8,27,{"$f":"'[2]Протокол ШЭ ВОШ по предмету ЛИТ'!L4","v":40},{"$f":"'[2]Протокол ШЭ ВОШ по предмету ЛИТ'!M4","v":"призер"},{"$f":"'[2]Протокол ШЭ ВОШ по предмету ЛИТ'!N4","v":"нет"},{"$f":"'[2]Протокол ШЭ ВОШ по предмету ЛИТ'!O4","v":"Хазипова Ильмира Нургалиевна"},{"$f":"'[2]Протокол ШЭ ВОШ по предмету ЛИТ'!P4","v":"Муниципальное бюджетное общеобразовательное учреждение \"Многопрофильный лицей №37\" Нижнекамского муниципального района Республики Татарстан"}]
[90,{"$f":"'[2]Протокол ШЭ ВОШ по предмету ЛИТ'!B5","v":"Гайдуллин"},{"$f":"'[2]Протокол ШЭ ВОШ по предмету ЛИТ'!C5","v":"Ярослав"},{"$f":"'[2]Протокол ШЭ ВОШ по предмету ЛИТ'!D5","v":"Владимирович"},{"$f":"'[2]Протокол ШЭ ВОШ по предмету ЛИТ'!I5","v":8},8,{"$f":"'[2]Протокол ШЭ ВОШ по предмету ЛИТ'!K5","v":17},{"$f":"'[2]Протокол ШЭ ВОШ по предмету ЛИТ'!L5","v":40},{"$f":"'[2]Протокол ШЭ ВОШ по предмету ЛИТ'!M5","v":"участник"},{"$f":"'[2]Протокол ШЭ ВОШ по предмету ЛИТ'!N5","v":"нет"},{"$f":"'[2]Протокол ШЭ ВОШ по предмету ЛИТ'!O5","v":"Хазипова Ильмира Нургалиевна"},{"$f":"'[2]Протокол ШЭ ВОШ по предмету ЛИТ'!P5","v":"Муниципальное бюджетное общеобразовательное учреждение \"Многопрофильный лицей №37\" Нижнекамского муниципального района Республики Татарстан"}]
[91,{"$f":"'[2]Протокол ШЭ ВОШ по предмету ЛИТ'!B6","v":"Минахметов"},{"$f":"'[2]Протокол ШЭ ВОШ по предмету ЛИТ'!C6","v":"Марат"},{"$f":"'[2]Протокол ШЭ ВОШ по предмету ЛИТ'!D6","v":"Ибрагимович"},{"$f":"'[2]Протокол ШЭ ВОШ по предмету ЛИТ'!I6","v":8},8,{"$f":"'[2]Протокол ШЭ ВОШ по предмету ЛИТ'!K6","v":17},{"$f":"'[2]Протокол ШЭ ВОШ по предмету ЛИТ'!L6","v":40},{"$f":"'[2]Протокол ШЭ ВОШ по предмету ЛИТ'!M6","v":"участник"},{"$f":"'[2]Протокол ШЭ ВОШ по предмету ЛИТ'!N6","v":"нет"},{"$f":"'[2]Протокол ШЭ ВОШ по предмету ЛИТ'!O6","v":"Охотникова Анжела Евгеньевна"},{"$f":"'[2]Протокол ШЭ ВОШ по предмету ЛИТ'!P6","v":"Муниципальное бюджетное общеобразовательное учреждение \"Многопрофильный лицей №37\" Нижнекамского муниципального района Республики Татарстан"}]
[92,{"$f":"'[2]Протокол ШЭ ВОШ по предмету ЛИТ'!B7","v":"Усманова"},{"$f":"'[2]Протокол ШЭ ВОШ по предмету ЛИТ'!C7","v":"Малика"},{"$f":"'[2]Протокол ШЭ ВОШ по предмету ЛИТ'!D7","v":"Айратовна"},{"$f":"'[2]Протокол ШЭ ВОШ по предмету ЛИТ'!I7","v":8},8,{"$f":"'[2]Протокол ШЭ ВОШ по предмету ЛИТ'!K7","v":17},{"$f":"'[2]Протокол ШЭ ВОШ по предмету ЛИТ'!L7","v":40},{"$f":"'[2]Протокол ШЭ ВОШ по предмету ЛИТ'!M7","v":"участник"},{"$f":"'[2]Протокол ШЭ ВОШ по предмету ЛИТ'!N7","v":"нет"},{"$f":"'[2]Протокол ШЭ ВОШ по предмету ЛИТ'!O7","v":"Охотникова Анжела Евгеньевна"},{"$f":"'[2]Протокол ШЭ ВОШ по предмету ЛИТ'!P7","v":"Муниципальное бюджетное общеобразовательное учреждение \"Многопрофильный лицей №37\" Нижнекамского муниципального района Республики Татарстан"}]
[93,{"$f":"'[2]Протокол ШЭ ВОШ по предмету ЛИТ'!B8","v":"Алиева"},{"$f":"'[2]Протокол ШЭ ВОШ по предмету ЛИТ'!C8","v":"Айгуль"},{"$f":"'[2]Протокол ШЭ ВОШ по предмету ЛИТ'!D8","v":"Айратовна"},{"$f":"'[2]Протокол ШЭ ВОШ по предмету ЛИТ'!I8","v":8},8,{"$f":"'[2]Протокол ШЭ ВОШ по предмету ЛИТ'!K8","v":16},{"$f":"'[2]Протокол ШЭ ВОШ по предмету ЛИТ'!L8","v":40},{"$f":"'[2]Протокол ШЭ ВОШ по предмету ЛИТ'!M8","v":"участник"},{"$f":"'[2]Протокол ШЭ ВОШ по предмету ЛИТ'!N8","v":"нет"},{"$f":"'[2]Протокол ШЭ ВОШ по предмету ЛИТ'!O8","v":"Охотникова Анжела Евгеньевна"},{"$f":"'[2]Протокол ШЭ ВОШ по предмету ЛИТ'!P8","v":"Муниципальное бюджетное общеобразовательное учреждение \"Многопрофильный лицей №37\" Нижнекамского муниципального района Республики Татарстан"}]
[94,{"$f":"'[2]Протокол ШЭ ВОШ по предмету ЛИТ'!B9","v":"Гильманова"},{"$f":"'[2]Протокол ШЭ ВОШ по предмету ЛИТ'!C9","v":"Самина"},{"$f":"'[2]Протокол ШЭ ВОШ по предмету ЛИТ'!D9","v":"Рустемовна"},{"$f":"'[2]Протокол ШЭ ВОШ по предмету ЛИТ'!I9","v":8},8,{"$f":"'[2]Протокол ШЭ ВОШ по предмету ЛИТ'!K9","v":16},{"$f":"'[2]Протокол ШЭ ВОШ по предмету ЛИТ'!L9","v":40},{"$f":"'[2]Протокол ШЭ ВОШ по предмету ЛИТ'!M9","v":"участник"},{"$f":"'[2]Протокол ШЭ ВОШ по предмету ЛИТ'!N9","v":"нет"},{"$f":"'[2]Протокол ШЭ ВОШ по предмету ЛИТ'!O9","v":"Охотникова Анжела Евгеньевна"},{"$f":"'[2]Протокол ШЭ ВОШ по предмету ЛИТ'!P9","v":"Муниципальное бюджетное общеобразовательное учреждение \"Многопрофильный лицей №37\" Нижнекамского муниципального района Республики Татарстан"}]
[95,{"$f":"'[2]Протокол ШЭ ВОШ по предмету ЛИТ'!B10","v":"Шаяхметова"},{"$f":"'[2]Протокол ШЭ ВОШ по предмету ЛИТ'!C10","v":"Дарина"},{"$f":"'[2]Протокол ШЭ ВОШ по предмету ЛИТ'!D10","v":"Ильдаровна"},{"$f":"'[2]Протокол ШЭ ВОШ по предмету ЛИТ'!I10","v":8},8,{"$f":"'[2]Протокол ШЭ ВОШ по предмету ЛИТ'!K10","v":16},{"$f":"'[2]Протокол ШЭ ВОШ по предмету ЛИТ'!L10","v":40},{"$f":"'[2]Протокол ШЭ ВОШ по предмету ЛИТ'!M10","v":"участник"},{"$f":"'[2]Протокол ШЭ ВОШ по предмету ЛИТ'!N10","v":"нет"},{"$f":"'[2]Протокол ШЭ ВОШ по предмету ЛИТ'!O10","v":"Хазипова Ильмира Нургалиевна"},{"$f":"'[2]Протокол ШЭ ВОШ по предмету ЛИТ'!P10","v":"Муниципальное бюджетное общеобразовательное учреждение \"Многопрофильный лицей №37\" Нижнекамского муниципального района Республики Татарстан"}]
[96,{"$f":"'[2]Протокол ШЭ ВОШ по предмету ЛИТ'!B11","v":"Орехов"},{"$f":"'[2]Протокол ШЭ ВОШ по предмету ЛИТ'!C11","v":"Станислав"},{"$f":"'[2]Протокол ШЭ ВОШ по предмету ЛИТ'!D11","v":"Владимирович"},{"$f":"'[2]Протокол ШЭ ВОШ по предмету ЛИТ'!I11","v":8},8,{"$f":"'[2]Протокол ШЭ ВОШ по предмету ЛИТ'!K11","v":14},{"$f":"'[2]Протокол ШЭ ВОШ по предмету ЛИТ'!L11","v":40},{"$f":"'[2]Протокол ШЭ ВОШ по предмету ЛИТ'!M11","v":"участник"},{"$f":"'[2]Протокол ШЭ ВОШ по предмету ЛИТ'!N11","v":"нет"},{"$f":"'[2]Протокол ШЭ ВОШ по предмету ЛИТ'!O11","v":"Хазипова Ильмира Нургалиевна"},{"$f":"'[2]Протокол ШЭ ВОШ по предмету ЛИТ'!P11","v":"Муниципальное бюджетное общеобразовательное учреждение \"Многопрофильный лицей №37\" Нижнекамского муниципального района Республики Татарстан"}]
[97,{"$f":"'[2]Протокол ШЭ ВОШ по предмету ЛИТ'!B12","v":"Давлетшина"},{"$f":"'[2]Протокол ШЭ ВОШ по предмету ЛИТ'!C12","v":"Диляра"},{"$f":"'[2]Протокол ШЭ ВОШ по предмету ЛИТ'!D12","v":"Альбертовна"},{"$f":"'[2]Протокол ШЭ ВОШ по предмету ЛИТ'!I12","v":8},8,{"$f":"'[2]Протокол ШЭ ВОШ по предмету ЛИТ'!K12","v":14},{"$f":"'[2]Протокол ШЭ ВОШ по предмету ЛИТ'!L12","v":40},{"$f":"'[2]Протокол ШЭ ВОШ по предмету ЛИТ'!M12","v":"участник"},{"$f":"'[2]Протокол ШЭ ВОШ по предмету ЛИТ'!N12","v":"нет"},{"$f":"'[2]Протокол ШЭ ВОШ по предмету ЛИТ'!O12","v":"Охотникова Анжела Евгеньевна"},{"$f":"'[2]Протокол ШЭ ВОШ по предмету ЛИТ'!P12","v":"Муниципальное бюджетное общеобразовательное учреждение \"Многопрофильный лицей №37\" Нижнекамского муниципального района Республики Татарстан"}]
[98,{"$f":"'[2]Протокол ШЭ ВОШ по предмету ЛИТ'!B13","v":"Фаттахова"},{"$f":"'[2]Протокол ШЭ ВОШ по предмету ЛИТ'!C13","v":"Лейла"},{"$f":"'[2]Протокол ШЭ ВОШ по предмету ЛИТ'!D13","v":"Ильшатовна"},{"$f":"'[2]Протокол ШЭ ВОШ по предмету ЛИТ'!I13","v":8},8,{"$f":"'[2]Протокол ШЭ ВОШ по предмету ЛИТ'!K13","v":13},{"$f":"'[2]Протокол ШЭ ВОШ по предмету ЛИТ'!L13","v":40},{"$f":"'[2]Протокол ШЭ ВОШ по предмету ЛИТ'!M13","v":"участник"},{"$f":"'[2]Протокол ШЭ ВОШ по предмету ЛИТ'!N13","v":"нет"},{"$f":"'[2]Протокол ШЭ ВОШ по предмету ЛИТ'!O13","v":"Охотникова Анжела Евгеньевна"},{"$f":"'[2]Протокол ШЭ ВОШ по предмету ЛИТ'!P13","v":"Муниципальное бюджетное общеобразовательное учреждение \"Многопрофильный лицей №37\" Нижнекамского муниципального района Республики Татарстан"}]
[99,{"$f":"'[2]Протокол ШЭ ВОШ по предмету ЛИТ'!B14","v":"Галкина"},{"$f":"'[2]Протокол ШЭ ВОШ по предмету ЛИТ'!C14","v":"Дарья"},{"$f":"'[2]Протокол ШЭ ВОШ по предмету ЛИТ'!D14","v":"Александровна"},{"$f":"'[2]Протокол ШЭ ВОШ по предмету ЛИТ'!I14","v":8},8,{"$f":"'[2]Протокол ШЭ ВОШ по предмету ЛИТ'!K14","v":12},{"$f":"'[2]Протокол ШЭ ВОШ по предмету ЛИТ'!L14","v":40},{"$f":"'[2]Протокол ШЭ ВОШ по предмету ЛИТ'!M14","v":"участник"},{"$f":"'[2]Протокол ШЭ ВОШ по предмету ЛИТ'!N14","v":"нет"},{"$f":"'[2]Протокол ШЭ ВОШ по предмету ЛИТ'!O14","v":"Хазипова Ильмира Нургалиевна"},{"$f":"'[2]Протокол ШЭ ВОШ по предмету ЛИТ'!P14","v":"Муниципальное бюджетное общеобразовательное учреждение \"Многопрофильный лицей №37\" Нижнекамского муниципального района Республики Татарстан"}]
[100,{"$f":"'[2]Протокол ШЭ ВОШ по предмету ЛИТ'!B15","v":"Хузин"},{"$f":"'[2]Протокол ШЭ ВОШ по предмету ЛИТ'!C15","v":"Риан"},{"$f":"'[2]Протокол ШЭ ВОШ по предмету ЛИТ'!D15","v":"Робертович"},{"$f":"'[2]Протокол ШЭ ВОШ по предмету ЛИТ'!I15","v":8},8,{"$f":"'[2]Протокол ШЭ ВОШ по предмету ЛИТ'!K15","v":12},{"$f":"'[2]Протокол ШЭ ВОШ по предмету ЛИТ'!L15","v":40},{"$f":"'[2]Протокол ШЭ ВОШ по предмету ЛИТ'!M15","v":"участник"},{"$f":"'[2]Протокол ШЭ ВОШ по предмету ЛИТ'!N15","v":"нет"},{"$f":"'[2]Протокол ШЭ ВОШ по предмету ЛИТ'!O15","v":"Охотникова Анжела Евгеньевна"},{"$f":"'[2]Протокол ШЭ ВОШ по предмету ЛИТ'!P15","v":"Муниципальное бюджетное общеобразовательное учреждение \"Многопрофильный лицей №37\" Нижнекамского муниципального района Республики Татарстан"}]
[101,{"$f":"'[2]Протокол ШЭ ВОШ по предмету ЛИТ'!B16","v":"Логашов"},{"$f":"'[2]Протокол ШЭ ВОШ по предмету ЛИТ'!C16","v":"Кирилл"},{"$f":"'[2]Протокол ШЭ ВОШ по предмету ЛИТ'!D16","v":"Иванович"},{"$f":"'[2]Протокол ШЭ ВОШ по предмету ЛИТ'!I16","v":8},8,{"$f":"'[2]Протокол ШЭ ВОШ по предмету ЛИТ'!K16","v":11},{"$f":"'[2]Протокол ШЭ ВОШ по предмету ЛИТ'!L16","v":40},{"$f":"'[2]Протокол ШЭ ВОШ по предмету ЛИТ'!M16","v":"участник"},{"$f":"'[2]Протокол ШЭ ВОШ по предмету ЛИТ'!N16","v":"нет"},{"$f":"'[2]Протокол ШЭ ВОШ по предмету ЛИТ'!O16","v":"Хазипова Ильмира Нургалиевна"},{"$f":"'[2]Протокол ШЭ ВОШ по предмету ЛИТ'!P16","v":"Муниципальное бюджетное общеобразовательное учреждение \"Многопрофильный лицей №37\" Нижнекамского муниципального района Республики Татарстан"}]
[102,{"$f":"'[2]Протокол ШЭ ВОШ по предмету ЛИТ'!B17","v":"Ибрагимов"},{"$f":"'[2]Протокол ШЭ ВОШ по предмету ЛИТ'!C17","v":"Данис"},{"$f":"'[2]Протокол ШЭ ВОШ по предмету ЛИТ'!D17","v":"Азатович"},{"$f":"'[2]Протокол ШЭ ВОШ по предмету ЛИТ'!I17","v":8},8,{"$f":"'[2]Протокол ШЭ ВОШ по предмету ЛИТ'!K17","v":11},{"$f":"'[2]Протокол ШЭ ВОШ по предмету ЛИТ'!L17","v":40},{"$f":"'[2]Протокол ШЭ ВОШ по предмету ЛИТ'!M17","v":"участник"},{"$f":"'[2]Протокол ШЭ ВОШ по предмету ЛИТ'!N17","v":"нет"},{"$f":"'[2]Протокол ШЭ ВОШ по предмету ЛИТ'!O17","v":"Хазипова Ильмира Нургалиевна"},{"$f":"'[2]Протокол ШЭ ВОШ по предмету ЛИТ'!P17","v":"Муниципальное бюджетное общеобразовательное учреждение \"Многопрофильный лицей №37\" Нижнекамского муниципального района Республики Татарстан"}]
[103,{"$f":"'[2]Протокол ШЭ ВОШ по предмету ЛИТ'!B18","v":"Исхакова"},{"$f":"'[2]Протокол ШЭ ВОШ по предмету ЛИТ'!C18","v":"Юлия"},{"$f":"'[2]Протокол ШЭ ВОШ по предмету ЛИТ'!D18","v":"Фёдоровна"},{"$f":"'[2]Протокол ШЭ ВОШ по предмету ЛИТ'!I18","v":8},8,{"$f":"'[2]Протокол ШЭ ВОШ по предмету ЛИТ'!K18","v":10},{"$f":"'[2]Протокол ШЭ ВОШ по предмету ЛИТ'!L18","v":40},{"$f":"'[2]Протокол ШЭ ВОШ по предмету ЛИТ'!M18","v":"участник"},{"$f":"'[2]Протокол ШЭ ВОШ по предмету ЛИТ'!N18","v":"нет"},{"$f":"'[2]Протокол ШЭ ВОШ по предмету ЛИТ'!O18","v":"Хазипова Ильмира Нургалиевна"},{"$f":"'[2]Протокол ШЭ ВОШ по предмету ЛИТ'!P18","v":"Муниципальное бюджетное общеобразовательное учреждение \"Многопрофильный лицей №37\" Нижнекамского муниципального района Республики Татарстан"}]
[104,{"$f":"'[2]Протокол ШЭ ВОШ по предмету ЛИТ'!B19","v":"Гильфанов"},{"$f":"'[2]Протокол ШЭ ВОШ по предмету ЛИТ'!C19","v":"Дамир"},{"$f":"'[2]Протокол ШЭ ВОШ по предмету ЛИТ'!D19","v":"Изаилевич"},{"$f":"'[2]Протокол ШЭ ВОШ по предмету ЛИТ'!I19","v":8},8,{"$f":"'[2]Протокол ШЭ ВОШ по предмету ЛИТ'!K19","v":9},{"$f":"'[2]Протокол ШЭ ВОШ по предмету ЛИТ'!L19","v":40},{"$f":"'[2]Протокол ШЭ ВОШ по предмету ЛИТ'!M19","v":"участник"},{"$f":"'[2]Протокол ШЭ ВОШ по предмету ЛИТ'!N19","v":"нет"},{"$f":"'[2]Протокол ШЭ ВОШ по предмету ЛИТ'!O19","v":"Хазипова Ильмира Нургалиевна"},{"$f":"'[2]Протокол ШЭ ВОШ по предмету ЛИТ'!P19","v":"Муниципальное бюджетное общеобразовательное учреждение \"Многопрофильный лицей №37\" Нижнекамского муниципального района Республики Татарстан"}]
[105,{"$f":"'[2]Протокол ШЭ ВОШ по предмету ЛИТ'!B20","v":"Ильясова"},{"$f":"'[2]Протокол ШЭ ВОШ по предмету ЛИТ'!C20","v":"Алина"},{"$f":"'[2]Протокол ШЭ ВОШ по предмету ЛИТ'!D20","v":"Фанилевна"},{"$f":"'[2]Протокол ШЭ ВОШ по предмету ЛИТ'!I20","v":8},8,{"$f":"'[2]Протокол ШЭ ВОШ по предмету ЛИТ'!K20","v":7},{"$f":"'[2]Протокол ШЭ ВОШ по предмету ЛИТ'!L20","v":40},{"$f":"'[2]Протокол ШЭ ВОШ по предмету ЛИТ'!M20","v":"участник"},{"$f":"'[2]Протокол ШЭ ВОШ по предмету ЛИТ'!N20","v":"нет"},{"$f":"'[2]Протокол ШЭ ВОШ по предмету ЛИТ'!O20","v":"Охотникова Анжела Евгеньевна"},{"$f":"'[2]Протокол ШЭ ВОШ по предмету ЛИТ'!P20","v":"Муниципальное бюджетное общеобразовательное учреждение \"Многопрофильный лицей №37\" Нижнекамского муниципального района Республики Татарстан"}]
[106,{"$f":"'[2]Протокол ШЭ ВОШ по предмету ЛИТ'!B21","v":"Шагиев"},{"$f":"'[2]Протокол ШЭ ВОШ по предмету ЛИТ'!C21","v":"Расим"},{"$f":"'[2]Протокол ШЭ ВОШ по предмету ЛИТ'!D21","v":"Рашитович"},{"$f":"'[2]Протокол ШЭ ВОШ по предмету ЛИТ'!I21","v":8},8,{"$f":"'[2]Протокол ШЭ ВОШ по предмету ЛИТ'!K21","v":5},{"$f":"'[2]Протокол ШЭ ВОШ по предмету ЛИТ'!L21","v":40},{"$f":"'[2]Протокол ШЭ ВОШ по предмету ЛИТ'!M21","v":"участник"},{"$f":"'[2]Протокол ШЭ ВОШ по предмету ЛИТ'!N21","v":"нет"},{"$f":"'[2]Протокол ШЭ ВОШ по предмету ЛИТ'!O21","v":"Охотникова Анжела Евгеньевна"},{"$f":"'[2]Протокол ШЭ ВОШ по предмету ЛИТ'!P21","v":"Муниципальное бюджетное общеобразовательное учреждение \"Многопрофильный лицей №37\" Нижнекамского муниципального района Республики Татарстан"}]
[107,"Бобровская ","Алла ","Сергеевна ",9,9,76,100,{"$f":"I131","v":"победитель"},"нет","Макарова Эльвира Наилевна",{"$f":"$L$108","v":"Муниципальное бюджетное общеобразовательное учреждение \"Многопрофильный лицей №37\" Нижнекамского муниципального района Республики Татарстан"}]
[108,"Крутикова","Елизавета ","Александровна",9,9,62,100,"призер","нет","Макарова Эльвира Наилевна","Муниципальное бюджетное общеобразовательное учреждение \"Многопрофильный лицей №37\" Нижнекамского муниципального района Республики Татарстан"]
[109,"Виноградова","Анастасия","Сергеевна",9,9,56,100,"участник","да","Хазипова Ильмира Нургалиевна","Муниципальное бюджетное общеобразовательное учреждение \"Многопрофильный лицей №37\" Нижнекамского муниципального района Республики Татарстан"]
[110,"Темиргазина","Динара","Данилевна",9,9,52,100,{"$f":"$I$108","v":"участник"},"нет","Макарова Эльвира Наилевна","Муниципальное бюджетное общеобразовательное учреждение \"Многопрофильный лицей №37\" Нижнекамского муниципального района Республики Татарстан"]
[111,"Гарипова","Ралина","Зуфаровна",9,9,43,100,"участник","нет","макарова Эльвира Наилевна","Муниципальное бюджетное общеобразовательное учреждение \"Многопрофильный лицей №37\" Нижнекамского муниципального района Республики Татарстан"]
[112,"Шихранова","Ульяна","Алексеевна",9,9,42,100,"участник","нет","Макарова Эльвира Наилевна","Муниципальное бюджетное общеобразовательное учреждение \"Многопрофильный лицей №37\" Нижнекамского муниципального района Республики Татарстан"]
[113,"Лаврентьева","Екатерина","Андреевна",9,9,41,100,"участник","нет","Хазипова Ильмира Нургалиевна","Муниципальное бюджетное общеобразовательное учреждение \"Многопрофильный лицей №37\" Нижнекамского муниципального района Республики Татарстан"]
[114,"Сахабутдинова","Риана","Маратовна",9,9,40,100,"участник","нет","Макарова Эльвира Наилевна","Муниципальное бюджетное общеобразовательное учреждение \"Многопрофильный лицей №37\" Нижнекамского муниципального района Республики Татарстан"]
[115,"Никифорова","Карина","Денисовна",9,9,40,100,"участник","нет","Макарова Эльвира Наилевна","Муниципальное бюджетное общеобразовательное учреждение \"Многопрофильный лицей №37\" Нижнекамского муниципального района Республики Татарстан"]
[116,"Яфаров","Данил","Рафисович",9,9,40,100,"участник","нет","Макарова Эльвира Наилевна","Муниципальное бюджетное общеобразовательное учреждение \"Многопрофильный лицей №37\" Нижнекамского муниципального района Республики Татарстан"]
[117,"Савельев ","Иван","Игоревич",9,9,39,100,"участник","нет","Макарова Эльвира Наилевна","Муниципальное бюджетное общеобразовательное учреждение \"Многопрофильный лицей №37\" Нижнекамского муниципального района Республики Татарстан"]
[118,"Хафизова","Ульяна","Эдуардовна",9,9,36,100,"участник","нет","Макарова Эльвира Наилевна","Муниципальное бюджетное общеобразовательное учреждение \"Многопрофильный лицей №37\" Нижнекамского муниципального района Республики Татарстан"]
[119,"Амирова","Амина","Руслановна",9,9,34,100,"участник","нет","Макарова Эльвира Наилевна","Муниципальное бюджетное общеобразовательное учреждение \"Многопрофильный лицей №37\" Нижнекамского муниципального района Республики Татарстан"]
[120,"Рахматуллина","Лиана","Айратовна",9,9,33,100,"участник","нет","Хазипова Ильмира Нургалиевна","Муниципальное бюджетное общеобразовательное учреждение \"Многопрофильный лицей №37\" Нижнекамского муниципального района Республики Татарстан"]
[121,"Мулюкова","Алия","Алмазовна",9,9,31,100,"участник","нет","Хазипова Ильмира Нургалиевна","Муниципальное бюджетное общеобразовательное учреждение \"Многопрофильный лицей №37\" Нижнекамского муниципального района Республики Татарстан"]
[122,"Васильева","Диана","Владимировна",9,9,31,100,"участник","нет","Хазипова Ильмира Нургалиевна","Муниципальное бюджетное общеобразовательное учреждение \"Многопрофильный лицей №37\" Нижнекамского муниципального района Республики Татарстан"]
[123,"Павлов","Ярослав","Павлович",9,9,26,100,"участник","нет","Макарова Эльвира Наилевна","Муниципальное бюджетное общеобразовательное учреждение \"Многопрофильный лицей №37\" Нижнекамского муниципального района Республики Татарстан"]
[124,"Габдрахимова ","Илина","Ильдаровна",9,9,25,100,"участник","нет","Макарова Эльвира Наилевна","Муниципальное бюджетное общеобразовательное учреждение \"Многопрофильный лицей №37\" Нижнекамского муниципального района Республики Татарстан"]
[125,"Меликян","Кира","Артуровна",9,9,13,100,"участник","нет","Макарова Эльвира Наилевна","Муниципальное бюджетное общеобразовательное учреждение \"Многопрофильный лицей №37\" Нижнекамского муниципального района Республики Татарстан"]
[126,"Салахова","Камилла","Алмазовна",9,9,8,100,"участник","нет","Макарова Эльвира Наилевна","Муниципальное бюджетное общеобразовательное учреждение \"Многопрофильный лицей №37\" Нижнекамского муниципального района Республики Татарстан"]
[127,"Гарифуллина ","Алсу","Рафисовна",9,9,7,100,"участник","нет","Макарова Эльвира Наилевна","Муниципальное бюджетное общеобразовательное учреждение \"Многопрофильный лицей №37\" Нижнекамского муниципального района Республики Татарстан"]
[128,"Минвалиева","Алия","Ильгамовна",9,9,5,100,"участник","нет","Макарова Эльвира Наилевна","Муниципальное бюджетное общеобразовательное учреждение \"Многопрофильный лицей №37\" Нижнекамского муниципального района Республики Татарстан"]
[129,{"$f":"'[3]Протокол ШЭ ВОШ по предмету ЛИТ'!B2","v":"Фофанова"},{"$f":"'[3]Протокол ШЭ ВОШ по предмету ЛИТ'!C2","v":"Юлия"},{"$f":"'[3]Протокол ШЭ ВОШ по предмету ЛИТ'!D2","v":"Артемовна"},{"$f":"'[3]Протокол ШЭ ВОШ по предмету ЛИТ'!I2","v":11},{"$f":"'[3]Протокол ШЭ ВОШ по предмету ЛИТ'!J2","v":11},76,{"$f":"'[3]Протокол ШЭ ВОШ по предмету ЛИТ'!L2","v":100},{"$f":"'[3]Протокол ШЭ ВОШ по предмету ЛИТ'!M2","v":"победитель"},{"$f":"'[3]Протокол ШЭ ВОШ по предмету ЛИТ'!N2","v":"нет"},{"$f":"'[3]Протокол ШЭ ВОШ по предмету ЛИТ'!O2","v":"Воловикова Татьяна Ивановна"},{"$f":"'[3]Протокол ШЭ ВОШ по предмету ЛИТ'!P2","v":"Муниципальное бюджетное общеобразовательное учреждение \"Многопрофильный лицей №37\" Нижнекамского муниципального района Республики Татарстан"}]
[130,{"$f":"'[3]Протокол ШЭ ВОШ по предмету ЛИТ'!B3","v":"Плеханов "},{"$f":"'[3]Протокол ШЭ ВОШ по предмету ЛИТ'!C3","v":"Олег"},{"$f":"'[3]Протокол ШЭ ВОШ по предмету ЛИТ'!D3","v":"Владимирович"},{"$f":"'[3]Протокол ШЭ ВОШ по предмету ЛИТ'!I3","v":11},{"$f":"'[3]Протокол ШЭ ВОШ по предмету ЛИТ'!J3","v":11},{"$f":"'[3]Протокол ШЭ ВОШ по предмету ЛИТ'!K3","v":67},{"$f":"'[3]Протокол ШЭ ВОШ по предмету ЛИТ'!L3","v":100},{"$f":"'[3]Протокол ШЭ ВОШ по предмету ЛИТ'!M3","v":"призер"},{"$f":"'[3]Протокол ШЭ ВОШ по предмету ЛИТ'!N3","v":"нет"},{"$f":"'[3]Протокол ШЭ ВОШ по предмету ЛИТ'!O3","v":"Воловикова Татьяна Ивановна"},{"$f":"'[3]Протокол ШЭ ВОШ по предмету ЛИТ'!P3","v":"Муниципальное бюджетное общеобразовательное учреждение \"Многопрофильный лицей №37\" Нижнекамского муниципального района Республики Татарстан"}]
[131,{"$f":"'[3]Протокол ШЭ ВОШ по предмету ЛИТ'!B4","v":"Ашрфзянова"},{"$f":"'[3]Протокол ШЭ ВОШ по предмету ЛИТ'!C4","v":"Камилла"},{"$f":"'[3]Протокол ШЭ ВОШ по предмету ЛИТ'!D4","v":"Руслановна"},{"$f":"'[3]Протокол ШЭ ВОШ по предмету ЛИТ'!I4","v":11},{"$f":"'[3]Протокол ШЭ ВОШ по предмету ЛИТ'!J4","v":11},{"$f":"'[3]Протокол ШЭ ВОШ по предмету ЛИТ'!K4","v":64},{"$f":"'[3]Протокол ШЭ ВОШ по предмету ЛИТ'!L4","v":100},"призёр",{"$f":"'[3]Протокол ШЭ ВОШ по предмету ЛИТ'!N4","v":"нет"},{"$f":"'[3]Протокол ШЭ ВОШ по предмету ЛИТ'!O4","v":"Воловикова Татьяна Ивановна"},{"$f":"'[3]Протокол ШЭ ВОШ по предмету ЛИТ'!P4","v":"Муниципальное бюджетное общеобразовательное учреждение \"Многопрофильный лицей №37\" Нижнекамского муниципального района Республики Татарстан"}]
[132,{"$f":"'[3]Протокол ШЭ ВОШ по предмету ЛИТ'!B5","v":"Николаева"},{"$f":"'[3]Протокол ШЭ ВОШ по предмету ЛИТ'!C5","v":"Аида"},{"$f":"'[3]Протокол ШЭ ВОШ по предмету ЛИТ'!D5","v":"Михайловна"},{"$f":"'[3]Протокол ШЭ ВОШ по предмету ЛИТ'!I5","v":11},{"$f":"'[3]Протокол ШЭ ВОШ по предмету ЛИТ'!J5","v":11},{"$f":"'[3]Протокол ШЭ ВОШ по предмету ЛИТ'!K5","v":52},{"$f":"'[3]Протокол ШЭ ВОШ по предмету ЛИТ'!L5","v":100},"участник",{"$f":"'[3]Протокол ШЭ ВОШ по предмету ЛИТ'!N5","v":"нет"},{"$f":"'[3]Протокол ШЭ ВОШ по предмету ЛИТ'!O5","v":"Воловикова Татьяна Ивановна"},{"$f":"'[3]Протокол ШЭ ВОШ по предмету ЛИТ'!P5","v":"Муниципальное бюджетное общеобразовательное учреждение \"Многопрофильный лицей №37\" Нижнекамского муниципального района Республики Татарстан"}]
[133,{"$f":"'[3]Протокол ШЭ ВОШ по предмету ЛИТ'!B6","v":"Каранаева"},{"$f":"'[3]Протокол ШЭ ВОШ по предмету ЛИТ'!C6","v":"Диана"},{"$f":"'[3]Протокол ШЭ ВОШ по предмету ЛИТ'!D6","v":"Вадимовна"},{"$f":"'[3]Протокол ШЭ ВОШ по предмету ЛИТ'!I6","v":11},{"$f":"'[3]Протокол ШЭ ВОШ по предмету ЛИТ'!J6","v":11},{"$f":"'[3]Протокол ШЭ ВОШ по предмету ЛИТ'!K6","v":50},{"$f":"'[3]Протокол ШЭ ВОШ по предмету ЛИТ'!L6","v":100},{"$f":"'[3]Протокол ШЭ ВОШ по предмету ЛИТ'!M6","v":"участник"},{"$f":"'[3]Протокол ШЭ ВОШ по предмету ЛИТ'!N6","v":"нет"},{"$f":"'[3]Протокол ШЭ ВОШ по предмету ЛИТ'!O6","v":"Воловикова Татьяна Ивановна"},{"$f":"'[3]Протокол ШЭ ВОШ по предмету ЛИТ'!P6","v":"Муниципальное бюджетное общеобразовательное учреждение \"Многопрофильный лицей №37\" Нижнекамского муниципального района Республики Татарстан"}]
[134,{"$f":"'[3]Протокол ШЭ ВОШ по предмету ЛИТ'!B7","v":"Шарафиев "},{"$f":"'[3]Протокол ШЭ ВОШ по предмету ЛИТ'!C7","v":"Айнур"},{"$f":"'[3]Протокол ШЭ ВОШ по предмету ЛИТ'!D7","v":"Назилевич"},{"$f":"'[3]Протокол ШЭ ВОШ по предмету ЛИТ'!I7","v":11},{"$f":"'[3]Протокол ШЭ ВОШ по предмету ЛИТ'!J7","v":11},{"$f":"'[3]Протокол ШЭ ВОШ по предмету ЛИТ'!K7","v":42},{"$f":"'[3]Протокол ШЭ ВОШ по предмету ЛИТ'!L7","v":100},{"$f":"'[3]Протокол ШЭ ВОШ по предмету ЛИТ'!M7","v":"участник"},{"$f":"'[3]Протокол ШЭ ВОШ по предмету ЛИТ'!N7","v":"нет"},{"$f":"'[3]Протокол ШЭ ВОШ по предмету ЛИТ'!O7","v":"Воловикова Татьяна Ивановна"},{"$f":"'[3]Протокол ШЭ ВОШ по предмету ЛИТ'!P7","v":"Муниципальное бюджетное общеобразовательное учреждение \"Многопрофильный лицей №37\" Нижнекамского муниципального района Республики Татарстан"}]
[135,{"$f":"'[3]Протокол ШЭ ВОШ по предмету ЛИТ'!B8","v":"Исакиева"},{"$f":"'[3]Протокол ШЭ ВОШ по предмету ЛИТ'!C8","v":"Миланья"},{"$f":"'[3]Протокол ШЭ ВОШ по предмету ЛИТ'!D8","v":"Юрьевна"},{"$f":"'[3]Протокол ШЭ ВОШ по предмету ЛИТ'!I8","v":11},{"$f":"'[3]Протокол ШЭ ВОШ по предмету ЛИТ'!J8","v":11},{"$f":"'[3]Протокол ШЭ ВОШ по предмету ЛИТ'!K8","v":39},{"$f":"'[3]Протокол ШЭ ВОШ по предмету ЛИТ'!L8","v":100},{"$f":"'[3]Протокол ШЭ ВОШ по предмету ЛИТ'!M8","v":"участник"},{"$f":"'[3]Протокол ШЭ ВОШ по предмету ЛИТ'!N8","v":"нет"},{"$f":"'[3]Протокол ШЭ ВОШ по предмету ЛИТ'!O8","v":"Воловикова Татьяна Ивановна"},{"$f":"'[3]Протокол ШЭ ВОШ по предмету ЛИТ'!P8","v":"Муниципальное бюджетное общеобразовательное учреждение \"Многопрофильный лицей №37\" Нижнекамского муниципального района Республики Татарстан"}]
[136,{"$f":"'[3]Протокол ШЭ ВОШ по предмету ЛИТ'!B9","v":"Перцева"},{"$f":"'[3]Протокол ШЭ ВОШ по предмету ЛИТ'!C9","v":"Ксения"},{"$f":"'[3]Протокол ШЭ ВОШ по предмету ЛИТ'!D9","v":"Александровна"},{"$f":"'[3]Протокол ШЭ ВОШ по предмету ЛИТ'!I9","v":11},{"$f":"'[3]Протокол ШЭ ВОШ по предмету ЛИТ'!J9","v":11},{"$f":"'[3]Протокол ШЭ ВОШ по предмету ЛИТ'!K9","v":37},{"$f":"'[3]Протокол ШЭ ВОШ по предмету ЛИТ'!L9","v":100},{"$f":"'[3]Протокол ШЭ ВОШ по предмету ЛИТ'!M9","v":"участник"},{"$f":"'[3]Протокол ШЭ ВОШ по предмету ЛИТ'!N9","v":"нет"},{"$f":"'[3]Протокол ШЭ ВОШ по предмету ЛИТ'!O9","v":"Воловикова Татьяна Ивановна"},{"$f":"'[3]Протокол ШЭ ВОШ по предмету ЛИТ'!P9","v":"Муниципальное бюджетное общеобразовательное учреждение \"Многопрофильный лицей №37\" Нижнекамского муниципального района Республики Татарстан"}]
[137,{"$f":"'[3]Протокол ШЭ ВОШ по предмету ЛИТ'!B10","v":"Митрофанова"},{"$f":"'[3]Протокол ШЭ ВОШ по предмету ЛИТ'!C10","v":"Дарья"},{"$f":"'[3]Протокол ШЭ ВОШ по предмету ЛИТ'!D10","v":"Сергеевна"},{"$f":"'[3]Протокол ШЭ ВОШ по предмету ЛИТ'!I10","v":11},{"$f":"'[3]Протокол ШЭ ВОШ по предмету ЛИТ'!J10","v":11},{"$f":"'[3]Протокол ШЭ ВОШ по предмету ЛИТ'!K10","v":35},{"$f":"'[3]Протокол ШЭ ВОШ по предмету ЛИТ'!L10","v":100},{"$f":"'[3]Протокол ШЭ ВОШ по предмету ЛИТ'!M10","v":"участник"},{"$f":"'[3]Протокол ШЭ ВОШ по предмету ЛИТ'!N10","v":"нет"},{"$f":"'[3]Протокол ШЭ ВОШ по предмету ЛИТ'!O10","v":"Воловикова Татьяна Ивановна"},{"$f":"'[3]Протокол ШЭ ВОШ по предмету ЛИТ'!P10","v":"Муниципальное бюджетное общеобразовательное учреждение \"Многопрофильный лицей №37\" Нижнекамского муниципального района Республики Татарстан"}]
[138,{"$f":"'[3]Протокол ШЭ ВОШ по предмету ЛИТ'!B11","v":"Садыкова"},{"$f":"'[3]Протокол ШЭ ВОШ по предмету ЛИТ'!C11","v":"Самира"},{"$f":"'[3]Протокол ШЭ ВОШ по предмету ЛИТ'!D11","v":"Ренатовна"},{"$f":"'[3]Протокол ШЭ ВОШ по предмету ЛИТ'!I11","v":11},{"$f":"'[3]Протокол ШЭ ВОШ по предмету ЛИТ'!J11","v":11},{"$f":"'[3]Протокол ШЭ ВОШ по предмету ЛИТ'!K11","v":29},{"$f":"'[3]Протокол ШЭ ВОШ по предмету ЛИТ'!L11","v":100},{"$f":"'[3]Протокол ШЭ ВОШ по предмету ЛИТ'!M11","v":"участник"},{"$f":"'[3]Протокол ШЭ ВОШ по предмету ЛИТ'!N11","v":"нет"},{"$f":"'[3]Протокол ШЭ ВОШ по предмету ЛИТ'!O11","v":"Воловикова Татьяна Ивановна"},{"$f":"'[3]Протокол ШЭ ВОШ по предмету ЛИТ'!P11","v":"Муниципальное бюджетное общеобразовательное учреждение \"Многопрофильный лицей №37\" Нижнекамского муниципального района Республики Татарстан"}]